bitfinex/quotes_ETHUSD_20250822
["timestamp","ask_amount","ask_price","bid_price","bid_amount"]
[1755823534209,0.02355063,4258.2,4258.1,0.2913]
[1755823534386,3.97355063,4258.2,4258.1,0.2913]
[1755823535927,3.97355063,4258.2,4258.1,0.7456]
[1755823538227,3.97355063,4258.2,4258.1,0.2913]
[1755823539520,3.97355063,4258.2,4258.0,0.001]
[1755823540391,3.97355063,4258.2,4258.1,0.3115]
[1755823541212,6.01312046,4258.2,4258.0,0.001]
[1755823541412,5.98956983,4258.2,4258.0,0.001]
[1755823541613,0.02355063,4258.1,4258.0,0.001]
[1755823541828,2.2766,4258.5,4258.0,0.001]
[1755823541829,1.809,4258.5,4258.1,0.7809]
[1755823542010,3.97355063,4258.4,4258.2,0.4694]
[1755823542328,3.97355063,4258.4,4258.3,0.3115]
[1755823543518,5.54572046,4258.4,4258.0,0.001]
[1755823543722,6.77314769,4258.2,4258.0,0.001]
[1755823544031,3.97255063,4258.1,4258.0,0.001]
[1755823544505,3.97255063,4258.1,4258.0,0.3125]
[1755823545000,4.28895063,4258.1,4258.0,0.001]
[1755823545341,5.98833745,4258.1,4258.0,0.001]
[1755823545504,5.96478682,4258.1,4258.0,0.001]
[1755823546242,7.48430607,4258.1,4258.0,0.001]
[1755823547033,0.66,4257.9,4257.6,0.001]
[1755823547205,7.74954769,4257.7,4257.6,0.001]
[1755823547410,10.41609241,4257.7,4257.6,0.001]
[1755823547621,10.88369241,4257.7,4257.6,0.001]
[1755823547820,16.53269241,4257.7,4257.6,0.001]
[1755823548023,16.53272773,4257.7,4257.6,0.001]
[1755823548232,17.13243534,4257.7,4257.6,0.001]
[1755823550452,50.76586188,4257.7,4257.6,0.001]
[1755823550824,53.24086188,4257.7,4257.6,0.001]
[1755823551153,50.13243534,4257.7,4257.6,0.001]
[1755823551453,50.13219428,4257.7,4257.6,0.001]
[1755823551751,50.76562178,4257.7,4257.6,0.001]
[1755823552165,50.13219524,4257.7,4257.6,0.001]
[1755823553447,20.13219524,4257.7,4257.6,0.001]
[1755823553648,50.13219524,4257.7,4257.6,0.001]
[1755823554459,50.13184629,4257.7,4257.6,0.001]
[1755823555161,53.29784629,4257.7,4257.6,0.3125]
[1755823555465,22.28606145,4257.7,4257.6,0.3125]
[1755823555690,15.33606145,4257.7,4257.6,0.3125]
[1755823555849,19.60246145,4257.7,4257.6,0.001]
[1755823556156,20.07006145,4257.7,4257.6,0.001]
[1755823556359,19.60246145,4257.7,4257.6,0.001]
[1755823558665,19.60246145,4257.7,4257.4,0.001]
[1755823558666,20.07006145,4257.7,4257.4,0.001]
[1755823558830,1.72293745,4257.6,4257.4,0.001]
[1755823559133,4.2664,4257.5,4257.4,0.001]
[1755823559476,4.734,4257.5,4257.4,0.001]
[1755823560662,0.3164,4257.5,4257.4,0.001]
[1755823560861,5.61125484,4257.5,4257.4,0.3125]
[1755823561060,5.90410421,4257.5,4257.4,0.001]
[1755823563935,6.07580421,4257.5,4257.4,0.001]
[1755823564379,9.73580421,4257.5,4257.4,0.001]
[1755823564672,7.43314769,4257.3,4257.1,0.001]
[1755823564878,11.69804769,4257.3,4257.1,0.001]
[1755823565173,12.20432675,4257.3,4257.1,0.001]
[1755823567579,12.67192675,4257.3,4257.1,0.001]
[1755823568072,12.20432675,4257.3,4257.1,0.001]
[1755823568271,12.80403436,4257.3,4257.1,0.001]
[1755823570168,19.79403436,4257.3,4257.1,0.001]
[1755823570881,0.66,4257.2,4256.3,0.094229]
[1755823571090,0.66,4257.2,4256.0,0.4448]
[1755823571091,6.77314769,4256.7,4256.0,0.4448]
[1755823571260,6.77314769,4256.4,4256.2,0.094235]
[1755823571450,0.02355063,4256.3,4256.2,0.094235]
[1755823571646,3.97355063,4256.3,4256.2,0.393735]
[1755823572083,3.97355063,4256.3,4256.2,0.838535]
[1755823573088,3.97355063,4256.3,4256.2,0.393735]
[1755823573288,5.24077434,4256.3,4256.2,0.838535]
[1755823573488,5.21722371,4256.3,4256.2,0.838535]
[1755823573786,5.21722371,4256.3,4256.2,0.393735]
[1755823574407,5.21722371,4256.3,4256.2,0.838535]
[1755823574548,0.66,4256.1,4255.8,0.02]
[1755823574754,7.07484769,4255.9,4255.8,0.02]
[1755823574990,7.802302,4255.9,4254.8,0.02]
[1755823575147,6.64111643,4255.8,4255.0,0.4448]
[1755823575353,0.75100494,4255.7,4255.1,0.706916]
[1755823575574,0.59970761,4255.6,4255.0,0.4448]
[1755823575784,3.97355063,4255.5,4255.2,0.4448]
[1755823575969,3.97355063,4255.5,4254.8,0.02]
[1755823575970,0.02355063,4255.5,4255.4,0.2995]
[1755823576166,3.95,4255.5,4255.4,0.7443]
[1755823576386,10.72314769,4255.5,4255.4,0.7443]
[1755823577357,10.72314769,4255.5,4255.4,0.2995]
[1755823577578,11.97626246,4255.5,4255.4,0.2995]
[1755823577780,11.97626246,4255.5,4255.1,0.706888]
[1755823577964,0.02355063,4255.4,4255.2,0.4448]
[1755823578165,3.95,4255.3,4255.2,0.4448]
[1755823578381,3.95,4255.3,4255.2,0.7443]
[1755823578705,5.14998131,4255.3,4255.1,0.706888]
[1755823578910,0.02355063,4255.2,4254.8,0.02]
[1755823579116,6.77314769,4254.9,4254.8,0.02]
[1755823579412,1.19998131,4255.3,4255.1,0.2995]
[1755823579572,5.78255063,4255.2,4255.1,0.2995]
[1755823579771,5.759,4255.2,4255.1,0.2995]
[1755823580302,1.808,4255.2,4255.1,0.7443]
[1755823580502,12.53214769,4255.2,4255.1,0.7443]
[1755823580710,1.808,4255.2,4255.1,0.7443]
[1755823581007,5.759,4255.2,4255.1,1.12644576]
[1755823581195,5.759,4255.2,4255.1,0.7443]
[1755823582602,1.808,4255.2,4255.1,0.7443]
[1755823582770,5.761,4255.2,4255.1,0.7443]
[1755823585106,5.761,4255.2,4255.1,1.451095]
[1755823586121,5.761,4255.2,4255.1,1.006295]
[1755823586122,12.53414769,4255.2,4255.1,1.006295]
[1755823586289,14.55256246,4255.2,4254.8,0.02]
[1755823586475,0.02355063,4255.1,4254.8,0.02]
[1755823586675,0.3017,4254.9,4254.8,0.02]
[1755823586888,0.32525063,4254.9,4254.8,0.02]
[1755823587484,0.02355063,4254.9,4254.8,0.02]
[1755823587690,0.02355063,4254.9,4254.8,0.3195]
[1755823588276,3.97555063,4255.0,4254.8,0.7643]
[1755823588503,3.97555063,4255.0,4254.9,0.4448]
[1755823588727,3.97555063,4255.0,4254.9,0.7443]
[1755823588728,3.952,4255.0,4254.9,0.7443]
[1755823589084,3.952,4255.0,4254.9,1.1891]
[1755823593423,1.808,4255.2,4255.0,2.35017322]
[1755823593585,3.952,4255.1,4254.9,0.56571]
[1755823593783,3.952,4255.1,4255.0,0.2995]
[1755823594278,3.952,4255.1,4255.0,0.7443]
[1755823595421,3.952,4255.1,4255.0,3.09447626]
[1755823595780,1.808,4255.8,4255.1,5.35012103]
[1755823596124,1.808,4255.8,4255.7,0.2995]
[1755823596322,5.76,4255.8,4255.7,0.7443]
[1755823596507,1.808,4255.8,4255.7,0.7443]
[1755823596709,5.76,4255.8,4255.7,0.7443]
[1755823597046,5.76,4255.8,4255.7,3.09408969]
[1755823597313,5.76,4255.8,4255.7,4.58870447]
[1755823597719,5.76,4255.8,4255.7,6.93849416]
[1755823597919,1.808,4255.8,4255.7,6.93849416]
[1755823598079,5.759,4255.8,4255.7,4.58870447]
[1755823598899,5.759,4255.8,4255.7,3.7443]
[1755823599411,5.759,4255.8,4255.7,4.450901]
[1755823600622,1.808,4255.8,4255.7,4.450901]
[1755823600844,5.759,4255.8,4255.7,4.450901]
[1755823602149,5.759,4255.8,4255.7,3.706601]
[1755823602352,6.06,4255.8,4255.7,0.706601]
[1755823602644,7.78701477,4255.8,4255.7,0.706601]
[1755823604820,7.34331477,4255.8,4255.7,0.706601]
[1755823605015,7.78701477,4255.8,4255.7,0.706601]
[1755823608331,7.78701477,4255.8,4254.8,0.021]
[1755823608532,6.77314769,4255.3,4254.8,0.021]
[1755823608735,3.97455063,4255.2,4254.9,0.706601]
[1755823608945,0.299,4255.0,4254.9,0.706601]
[1755823609254,6.08155063,4255.0,4254.9,0.706601]
[1755823609407,6.058,4255.0,4254.9,0.706601]
[1755823613464,5.759,4255.0,4254.9,1.466701]
[1755823616327,1.808,4255.0,4254.9,1.85050958]
[1755823616562,5.759,4255.0,4254.9,3.81693249]
[1755823616749,5.759,4255.0,4254.9,1.466701]
[1755823617744,3.951,4255.0,4254.9,3.81693249]
[1755823617939,3.951,4255.0,4254.9,1.466701]
[1755823619434,3.951,4255.0,4254.9,1.007601]
[1755823619961,3.951,4255.0,4254.9,1.466701]
[1755823620970,3.951,4255.0,4254.9,1.007601]
[1755823621474,3.951,4255.0,4254.9,3.81693249]
[1755823621680,3.951,4255.0,4254.9,4.43810821]
[1755823621968,3.951,4255.0,4254.9,2.08787672]
[1755823622172,3.951,4255.0,4254.9,1.466701]
[1755823622378,3.951,4255.0,4254.9,1.007601]
[1755823622558,3.951,4255.0,4254.9,0.706601]
[1755823622746,4.25,4255.0,4254.9,0.706601]
[1755823622934,4.6937,4255.0,4254.9,0.706601]
[1755823624380,5.16307,4255.0,4254.9,0.706601]
[1755823624593,4.71937,4255.0,4254.9,0.706601]
[1755823625030,5.16307,4255.0,4254.9,0.706601]
[1755823626947,4.71937,4255.0,4254.9,0.706601]
[1755823627834,5.16307,4255.0,4254.9,0.706601]
[1755823628673,11.93621769,4255.0,4254.8,0.021]
[1755823628981,1.00085763,4254.9,4254.8,0.727601]
[1755823629193,1.29455763,4254.9,4254.8,0.021]
[1755823631384,4.78855763,4254.9,4254.8,0.021]
[1755823631585,4.765007,4254.9,4254.8,0.021]
[1755823632857,4.765007,4254.9,4254.8,0.31]
[1755823632858,0.516307,4254.9,4254.8,0.31]
[1755823633072,0.53985763,4254.9,4254.8,0.31]
[1755823633280,4.49485763,4254.9,4254.8,0.31]
[1755823633753,4.49485763,4254.9,4254.8,0.021]
[1755823633949,4.49485763,4254.9,4254.8,0.31]
[1755823633950,0.516307,4254.9,4254.8,0.31]
[1755823634189,3.955,4254.9,4254.8,0.7576]
[1755823634699,3.955,4254.9,4254.8,0.31]
[1755823635276,0.02355063,4255.3,4254.8,0.31]
[1755823635600,3.956,4255.2,4254.8,0.7576]
[1755823635774,0.02355063,4255.1,4254.8,0.7576]
[1755823635970,3.955,4255.0,4254.8,0.7576]
[1755823637469,3.955,4255.0,4254.8,0.31]
[1755823638374,0.02355063,4255.3,4254.8,0.31]
[1755823638609,4.63366983,4255.2,4254.8,0.31]
[1755823638770,0.02355063,4255.1,4254.8,0.31]
[1755823639103,3.953,4255.0,4254.8,0.31]
[1755823639464,3.953,4255.0,4254.9,0.706844]
[1755823639715,11.01984769,4255.0,4254.9,0.706844]
[1755823639902,12.55845451,4255.0,4254.9,0.706844]
[1755823640524,12.19215451,4255.0,4254.9,0.706844]
[1755823640889,3.952,4255.0,4254.9,0.995844]
[1755823641285,3.952,4255.0,4254.9,1.443444]
[1755823641791,1.808,4255.0,4254.9,1.443444]
[1755823642194,5.76,4255.0,4254.9,1.443444]
[1755823645430,5.76,4255.0,4254.9,3.79367549]
[1755823645641,5.76,4255.0,4254.9,1.443444]
[1755823649621,5.76,4255.0,4254.9,3.79367549]
[1755823650352,1.808,4255.0,4254.9,3.79367549]
[1755823650515,5.76,4255.0,4254.9,3.79367549]
[1755823650712,1.808,4255.0,4254.9,3.79367549]
[1755823651115,5.76,4255.0,4254.9,3.79367549]
[1755823651550,5.76,4255.0,4254.9,1.443444]
[1755823651930,1.808,4255.0,4254.9,3.79367549]
[1755823652126,5.76,4255.0,4254.9,3.79367549]
[1755823652655,5.76,4255.0,4254.9,1.443444]
[1755823654945,5.76,4255.0,4254.9,3.79367549]
[1755823656364,5.76,4255.0,4254.9,1.443444]
[1755823656854,5.759,4255.0,4254.9,3.79367549]
[1755823657017,5.759,4255.0,4254.9,1.443444]
[1755823658362,1.808,4255.0,4254.9,6.7126238]
[1755823658658,1.808,4255.0,4254.9,7.15342149]
[1755823658843,5.759,4255.0,4254.9,7.15342149]
[1755823660562,3.951,4255.0,4254.9,7.15342149]
[1755823663339,1.808,4255.6,4255.0,2.35016705]
[1755823663525,3.951,4255.5,4255.0,2.35016705]
[1755823663722,3.951,4255.5,4255.0,2.81446705]
[1755823664025,3.951,4255.5,4255.1,0.706668]
[1755823664625,3.951,4255.5,4255.1,3.05678618]
[1755823664841,3.951,4255.5,4255.1,0.706668]
[1755823665081,3.951,4255.5,4255.0,2.81445677]
[1755823665378,3.951,4255.5,4255.1,0.706668]
[1755823666985,1.808,4255.6,4255.5,5.34990012]
[1755823667286,0.002,4255.8,4255.7,2.34978969]
[1755823667462,3.953,4255.8,4255.7,0.33619789]
[1755823667663,3.953,4255.8,4255.7,0.777]
[1755823668083,0.002,4255.8,4255.7,3.12678969]
[1755823668293,0.002,4255.8,4255.7,7.38340878]
[1755823668589,3.953,4255.8,4255.7,7.38340878]
[1755823669467,0.002,4255.8,4255.7,7.38340878]
[1755823669653,0.002,4255.8,4255.7,8.04340878]
[1755823674596,0.002,4256.2,4255.8,3.66]
[1755823674761,0.002,4256.2,4256.1,3.32226885]
[1755823675094,0.002,4256.2,4256.1,10.27226885]
[1755823675292,0.002,4256.2,4256.1,10.73656885]
[1755823677192,0.002,4256.2,4256.1,10.83074985]
[1755823680826,0.002,4256.3,4256.2,6.00951365]
[1755823680827,1e-08,4256.3,4256.2,6.00951365]
[1755823681110,1e-08,4256.3,4256.2,15.03423834]
[1755823681470,1e-08,4256.3,4256.2,15.12840334]
[1755823681708,1e-08,4256.3,4256.2,25.59575834]
[1755823681906,1e-08,4256.3,4256.2,22.41543234]
[1755823682411,1e-08,4256.3,4256.2,18.69503234]
[1755823683106,1e-08,4256.3,4256.2,18.32386934]
[1755823683903,1e-08,4256.7,4256.6,3.00929286]
[1755823684097,1e-08,4256.7,4256.6,21.35763347]
[1755823684311,1e-08,4256.7,4256.6,21.79844055]
[1755823684616,1e-08,4256.7,4256.6,21.89260255]
[1755823686713,1e-08,4256.7,4256.6,10.70615486]
[1755823687032,1e-08,4256.7,4256.6,15.20517895]
[1755823688119,1e-08,4256.7,4256.6,15.66997895]
[1755823692950,0.31040001,4256.7,4256.6,2.99347895]
[1755823693095,0.31040001,4256.7,4256.6,2.44345486]
[1755823693096,0.74250001,4256.7,4256.6,2.44345486]
[1755823698246,0.74250001,4256.7,4256.6,0.094162]
[1755823703954,0.76605064,4256.7,4256.6,0.094162]
[1755823704456,1.52197047,4256.7,4256.6,0.094162]
[1755823704857,1.52197047,4256.7,4255.2,0.001]
[1755823705159,6.77314769,4255.3,4255.2,0.001]
[1755823705339,12.83754769,4255.3,4255.2,0.001]
[1755823705530,13.26964769,4255.3,4255.2,0.095231]
[1755823712356,14.59661246,4255.3,4255.2,0.095231]
[1755823717385,14.59861246,4255.3,4255.2,0.095231]
[1755823719176,14.59861246,4255.3,4255.2,0.001]
[1755823719793,14.59861246,4255.3,4255.1,0.001]
[1755823720100,0.48965063,4255.2,4255.1,0.001]
[1755823720302,0.48965063,4255.2,4254.8,0.021]
[1755823720303,2.24826694,4255.2,4254.8,0.021]
[1755823720594,6.77314769,4254.9,4254.8,0.021]
[1755823720762,11.01514769,4254.9,4254.8,0.021]
[1755823721118,11.48124769,4254.9,4254.8,0.021]
[1755823724471,11.48124769,4254.9,4254.7,0.001]
[1755823724672,1.1716754,4254.8,4254.7,0.001]
[1755823724908,1.9307754,4254.8,4254.7,0.001]
[1755823726419,1.9307754,4254.8,4254.4,0.001]
[1755823726581,6.77314769,4254.5,4254.4,0.001]
[1755823726891,12.82314769,4254.5,4254.4,0.001]
[1755823727089,13.64712084,4254.5,4254.4,0.001]
[1755823727418,14.11322084,4254.5,4254.4,0.001]
[1755823731396,14.11322084,4254.5,4253.8,0.021]
[1755823731613,6.77314769,4253.9,4253.8,0.021]
[1755823731799,11.01614769,4253.9,4253.8,0.021]
[1755823732108,12.23816752,4253.9,4253.8,0.021]
[1755823734497,12.74440924,4253.9,4253.8,0.021]
[1755823735512,42.74440924,4253.9,4252.8,0.02]
[1755823735710,6.77314769,4252.9,4252.8,0.02]
[1755823735911,6.77314769,4252.9,4252.8,0.3338]
[1755823735912,12.53214769,4252.9,4252.8,0.3338]
[1755823736315,13.98176246,4252.9,4252.8,0.02]
[1755823737041,14.44516246,4252.9,4252.8,0.02]
[1755823737707,13.98176246,4252.9,4252.8,0.02]
[1755823737905,14.44516246,4252.9,4252.8,0.02]
[1755823739343,14.44516246,4252.9,4251.8,0.02]
[1755823739344,30.66,4252.8,4251.8,0.02]
[1755823739505,6.77314769,4252.2,4251.8,0.02]
[1755823739707,5.78755063,4252.1,4251.9,0.4736]
[1755823739933,3.955,4252.0,4251.8,0.02]
[1755823740139,0.02355063,4251.9,4251.8,0.02]
[1755823740360,0.02355063,4251.9,4251.8,0.3338]
[1755823740566,3.955,4251.9,4251.8,0.8074]
[1755823741373,3.956,4251.9,4251.8,0.8074]
[1755823742770,3.956,4251.9,4251.8,0.3338]
[1755823743068,5.21216983,4251.9,4251.8,0.02]
[1755823743456,5.21216983,4251.9,4251.8,0.3338]
[1755823743770,5.21216983,4251.9,4251.8,0.8074]
[1755823744182,5.21216983,4251.9,4251.8,0.3338]
[1755823744539,5.21216983,4251.9,4251.8,0.02]
[1755823744958,5.21216983,4251.9,4251.8,0.3338]
[1755823745136,1.809,4252.1,4251.8,0.3338]
[1755823745455,3.97855063,4252.0,4251.8,0.3338]
[1755823747372,0.293,4251.9,4251.8,0.02]
[1755823748866,0.7644,4251.9,4251.8,0.02]
[1755823749278,0.78795063,4251.9,4251.8,0.02]
[1755823749433,2.12046046,4251.9,4251.8,0.02]
[1755823749630,5.60306046,4251.9,4251.8,0.02]
[1755823749843,5.57950983,4251.9,4251.8,0.02]
[1755823750245,6.05090983,4251.9,4251.8,0.021]
[1755823750778,5.57950983,4251.9,4251.8,0.021]
[1755823751858,5.57750983,4251.9,4251.8,0.021]
[1755823752665,1.62550983,4251.9,4251.8,0.021]
[1755823752864,5.30806046,4251.9,4251.8,0.7806]
[1755823753064,5.28450983,4251.9,4251.8,0.7806]
[1755823753742,5.28450983,4251.9,4251.8,0.021]
[1755823753939,6.06610983,4251.9,4251.8,0.021]
[1755823754443,5.59470983,4251.9,4251.8,0.021]
[1755823757486,6.06610983,4251.9,4251.8,0.021]
[1755823757866,5.59470983,4251.9,4251.8,0.021]
[1755823758874,6.77314769,4251.4,4251.3,0.001]
[1755823759079,11.71266246,4251.4,4251.3,0.001]
[1755823759269,12.18406246,4251.4,4251.3,0.001]
[1755823761216,12.69082265,4251.4,4251.3,0.001]
[1755823761724,12.69082265,4251.4,4250.8,0.02]
[1755823762018,6.77314769,4250.9,4250.8,0.02]
[1755823762220,11.71266246,4250.9,4250.8,0.02]
[1755823764341,12.18406246,4250.9,4250.8,0.02]
[1755823764549,12.69110135,4250.9,4250.8,0.02]
[1755823765294,12.69110135,4250.9,4249.8,0.482]
[1755823765501,6.77314769,4250.0,4249.8,0.482]
[1755823765829,5.78555063,4249.9,4249.8,0.482]
[1755823766011,5.762,4249.9,4249.8,0.02]
[1755823766210,5.762,4249.9,4249.8,0.3176]
[1755823766727,5.762,4249.9,4249.8,0.7796]
[1755823768437,5.763,4249.9,4249.8,0.7796]
[1755823772421,6.3393,4249.9,4249.8,0.02]
[1755823772635,6.0732,4249.9,4249.8,0.02]
[1755823774056,12.84634769,4249.9,4249.8,0.02]
[1755823774351,8.89334769,4249.9,4249.8,0.02]
[1755823774550,12.85134769,4249.9,4249.8,0.02]
[1755823774750,14.65502246,4249.9,4249.8,0.02]
[1755823777462,9.91542246,4249.9,4249.8,0.3176]
[1755823777678,14.18362246,4249.9,4249.8,0.02]
[1755823779146,14.64062246,4249.9,4249.8,0.02]
[1755823779562,14.18362246,4249.9,4249.8,0.02]
[1755823780372,9.91542246,4249.9,4249.8,0.3334]
[1755823780535,13.87242246,4249.9,4249.8,0.3334]
[1755823781644,5.766,4249.9,4249.8,0.3334]
[1755823781879,5.766,4249.9,4249.8,0.7959]
[1755823782263,5.766,4249.9,4249.8,0.3334]
[1755823782443,6.3955,4249.9,4249.8,0.02]
[1755823783070,6.77314769,4249.0,4248.9,0.001]
[1755823783264,6.77314769,4249.0,4248.9,0.3144]
[1755823783265,12.54114769,4249.0,4248.9,0.3144]
[1755823783576,12.71524769,4249.0,4248.9,0.001]
[1755823783777,13.98677246,4249.0,4248.9,0.001]
[1755823785163,14.10627835,4249.0,4248.9,0.001]
[1755823785360,14.44097246,4249.0,4248.9,0.001]
[1755823786402,9.85567246,4249.0,4248.9,0.001]
[1755823786709,13.81267246,4249.0,4248.9,0.3144]
[1755823787063,13.81267246,4249.0,4248.9,0.001]
[1755823787271,14.10427246,4249.0,4248.9,0.001]
[1755823788500,14.56127246,4249.0,4248.9,0.001]
[1755823789290,14.10427246,4249.0,4248.9,0.001]
[1755823793921,13.81267246,4249.0,4248.9,0.001]
[1755823794426,13.81267246,4249.0,4248.9,0.3144]
[1755823794721,9.85567246,4249.0,4248.9,0.3144]
[1755823795118,13.81167246,4249.0,4248.9,0.3144]
[1755823795326,9.85567246,4249.0,4248.9,0.001]
[1755823795624,14.10327246,4249.0,4248.9,0.001]
[1755823796726,13.81167246,4249.0,4248.9,0.001]
[1755823797226,13.81067246,4249.0,4248.9,0.001]
[1755823797425,14.10227246,4249.0,4248.9,0.001]
[1755823799393,14.55927246,4249.0,4248.9,0.001]
[1755823800527,15.06700311,4249.0,4248.9,0.001]
[1755823803498,10.65500311,4249.0,4248.9,0.001]
[1755823803744,14.61000311,4249.0,4248.9,0.001]
[1755823804124,15.06700311,4249.0,4248.9,0.001]
[1755823804519,15.06700311,4249.0,4248.8,0.021]
[1755823804520,30.0,4248.9,4247.8,0.02]
[1755823804747,6.77314769,4247.9,4247.8,0.02]
[1755823805042,5.766,4247.9,4247.8,0.02]
[1755823805248,5.766,4247.9,4247.8,0.3334]
[1755823805606,5.766,4247.9,4247.8,0.7959]
[1755823805808,6.5146,4247.9,4247.8,0.02]
[1755823806058,8.3601317,4247.9,4247.8,0.02]
[1755823806348,8.3598615,4247.9,4247.8,0.02]
[1755823807413,38.3598615,4247.9,4247.8,0.02]
[1755823808625,8.3598615,4247.9,4247.8,0.02]
[1755823809422,2.9962615,4247.9,4247.8,0.3213]
[1755823809620,2.9962615,4247.9,4247.8,0.7959]
[1755823809621,5.78955063,4247.9,4247.8,0.7959]
[1755823809859,5.766,4247.9,4247.8,0.7959]
[1755823813069,5.9728,4247.9,4247.8,0.02]
[1755823813363,5.9728,4247.9,4246.8,0.02]
[1755823813364,3.66,4247.8,4246.8,0.02]
[1755823813524,6.98254769,4246.9,4246.8,0.02]
[1755823813727,12.76254769,4246.9,4246.8,0.02]
[1755823814756,12.55314769,4246.9,4246.8,0.7959]
[1755823816487,12.55314769,4246.9,4246.8,0.3213]
[1755823816673,13.33364769,4246.9,4246.8,0.02]
[1755823816879,14.60517246,4246.9,4246.8,0.02]
[1755823819020,15.26517246,4246.9,4246.8,0.02]
[1755823819240,18.26517246,4246.9,4246.8,0.02]
[1755823819680,18.26517246,4246.9,4246.3,0.001]
[1755823819681,3.66,4246.8,4246.3,0.001]
[1755823819881,7.08354769,4246.4,4246.3,0.001]
[1755823820135,11.05354769,4246.4,4246.3,0.001]
[1755823820491,12.18364769,4246.4,4246.3,0.001]
[1755823821181,0.66,4246.3,4245.8,0.02]
[1755823821421,3.3104,4245.9,4245.8,0.02]
[1755823821590,10.94644506,4245.9,4245.8,0.02]
[1755823821786,0.66,4245.8,4245.1,0.708353]
[1755823822013,12.05299443,4245.9,4245.1,0.708353]
[1755823822014,7.08354769,4245.2,4245.1,0.708353]
[1755823822219,11.05354769,4245.2,4244.8,0.02]
[1755823822391,1.83555063,4245.1,4244.8,0.02]
[1755823822718,6.05326702,4245.0,4244.8,0.02]
[1755823822913,0.02355063,4244.9,4244.8,0.02]
[1755823823313,0.02355063,4244.9,4244.8,0.3213]
[1755823825588,0.02355063,4244.9,4244.8,0.7959]
[1755823825791,3.99155063,4244.9,4244.8,0.7959]
[1755823826601,3.99155063,4244.9,4244.8,0.3213]
[1755823826833,4.58392215,4244.9,4244.8,0.7959]
[1755823827012,3.99155063,4244.9,4244.8,0.7959]
[1755823827804,0.02355063,4244.9,4244.8,0.7959]
[1755823828012,3.968,4244.9,4244.8,0.7959]
[1755823828802,3.971,4244.9,4244.8,0.7959]
[1755823832029,1.812,4245.1,4244.8,0.7959]
[1755823832227,1.812,4245.1,4245.0,2.3557126]
[1755823832543,5.783,4245.1,4245.0,0.7759]
[1755823833038,5.783,4245.1,4245.0,3.1316126]
[1755823833339,3.971,4245.1,4245.0,3.1316126]
[1755823833546,1.812,4245.7,4245.4,2.35547523]
[1755823833750,1.812,4245.7,4245.6,0.3013]
[1755823833947,5.783,4245.7,4245.6,0.7759]
[1755823835118,1.813,4246.3,4245.6,0.7759]
[1755823835313,1.813,4246.6,4245.8,3.0]
[1755823835541,3.972,4246.5,4246.0,3.0]
[1755823835739,3.972,4246.5,4246.4,0.3013]
[1755823836057,3.972,4246.5,4246.4,0.7759]
[1755823836957,3.972,4246.5,4246.4,3.13082566]
[1755823837114,3.972,4246.5,4246.4,0.7759]
[1755823837317,3.972,4246.5,4246.4,1.34804582]
[1755823837542,3.972,4246.5,4246.4,0.7759]
[1755823837745,3.972,4246.5,4246.4,6.13083594]
[1755823837943,1.812,4247.2,4246.5,3.0]
[1755823838217,3.972,4247.1,4246.9,2.35461386]
[1755823838417,3.972,4247.1,4247.0,3.13330324]
[1755823838653,1.812,4247.2,4247.1,2.3545478]
[1755823838822,5.784,4247.2,4247.1,3.1332478]
[1755823839046,1.812,4247.2,4247.1,3.1332478]
[1755823839231,5.784,4247.2,4247.1,3.8412968]
[1755823839560,5.784,4247.2,4247.1,7.19581072]
[1755823840118,5.783,4247.2,4247.1,7.19581072]
[1755823841253,0.02,4247.8,4247.6,2.35426957]
[1755823841454,1.832,4247.8,4247.7,0.3094]
[1755823841623,5.802,4247.8,4247.7,0.7787]
[1755823845148,5.802,4247.8,4247.7,3.13291522]
[1755823845934,1.832,4247.8,4247.7,3.84091422]
[1755823846155,1.832,4247.8,4247.7,7.46279098]
[1755823846359,5.799,4247.8,4247.7,7.46279098]
[1755823849842,5.799,4247.8,4247.7,5.10857576]
[1755823850062,5.799,4247.8,4247.7,7.46279098]
[1755823852376,5.799,4247.8,4247.7,4.63927576]
[1755823852538,6.5671,4247.8,4247.7,0.707999]
[1755823853070,6.5671,4247.8,4246.4,0.002996]
[1755823853370,0.48495063,4247.7,4247.6,0.707999]
[1755823853665,0.79165063,4247.7,4247.6,0.707999]
[1755823853830,1.45071569,4247.7,4247.6,0.707999]
[1755823854034,5.39416506,4247.7,4247.6,0.707999]
[1755823854272,4.7351,4247.7,4247.6,0.707999]
[1755823854770,0.7681,4247.7,4247.6,0.707999]
[1755823854934,4.2737,4247.7,4247.6,0.707999]
[1755823855454,4.75865063,4247.7,4247.6,0.707999]
[1755823855660,0.7681,4247.7,4247.6,0.707999]
[1755823855860,4.75765063,4247.7,4247.6,0.707999]
[1755823856057,4.7341,4247.7,4247.6,0.707999]
[1755823856673,5.39071,4247.7,4247.6,0.707999]
[1755823860357,4.92931,4247.7,4247.6,0.707999]
[1755823860563,0.3067,4247.7,4247.6,0.707999]
[1755823860761,0.3067,4247.7,4247.6,3.84096964]
[1755823860762,3.964,4247.7,4247.6,3.84096964]
[1755823860965,1.832,4247.8,4247.7,5.35421522]
[1755823861175,1.832,4247.8,4247.7,3.13291522]
[1755823861176,5.796,4247.8,4247.7,3.13291522]
[1755823861447,5.796,4247.8,4247.7,3.0]
[1755823861448,6.1027,4247.8,4247.7,3.0]